bitfinex/quotes_ETHUSD_20230404
["timestamp","ask_amount","ask_price","bid_price","bid_amount"]
[1680597650098,1e-08,1816.7,1816.6,23.74036083]
[1680597650303,1e-08,1816.7,1816.6,24.96336083]
[1680597650803,1e-08,1816.7,1816.6,19.16136083]
[1680597651217,1e-08,1816.7,1816.6,19.13936083]
[1680597651644,1e-08,1816.7,1816.6,19.16136083]
[1680597652116,1e-08,1816.7,1816.6,19.13936083]
[1680597652315,1e-08,1816.7,1816.6,19.16136083]
[1680597652501,1e-08,1816.7,1816.6,19.13936083]
[1680597653906,1e-08,1816.7,1816.6,24.96336083]
[1680597655924,3e-08,1816.9,1816.7,10.107]
[1680597656109,3e-08,1816.9,1816.8,22.91864218]
[1680597656416,3e-08,1816.9,1816.8,22.94264218]
[1680597657066,3e-08,1816.9,1816.8,17.14064218]
[1680597657256,3e-08,1816.9,1816.8,19.13245397]
[1680597658213,3e-08,1816.9,1816.8,24.93445397]
[1680597659511,3e-08,1816.9,1816.8,24.9566932]
[1680597662016,3e-08,1816.9,1816.8,25.51097631]
[1680597664748,3e-08,1816.9,1816.8,18.23373708]
[1680597664957,3e-08,1816.9,1816.8,15.47778397]
[1680597666257,0.50261921,1816.9,1816.8,15.70778397]
[1680597668374,0.50261921,1816.9,1816.8,13.71597218]
[1680597669054,0.50261921,1816.9,1816.8,13.73821141]
[1680597671466,0.50261921,1816.9,1816.8,13.50821141]
[1680597673618,0.50261921,1816.9,1816.8,14.65546817]
[1680597674110,0.50261921,1816.9,1816.8,10.48597218]
[1680597674457,0.50261921,1816.9,1816.8,0.002]
[1680597674660,1.70861921,1816.9,1816.7,2.7]
[1680597674898,1.70861921,1816.9,1816.7,2.92017]
[1680597675103,1.70861921,1816.9,1816.7,2.7]
[1680597675510,1.70861921,1816.9,1816.7,2.92017]
[1680597676117,1.70861921,1816.9,1816.7,2.7]
[1680597676416,1.20600003,1816.9,1816.7,2.7]
[1680597676939,1.20600003,1816.9,1816.7,6.12654218]
[1680597677117,1.20600003,1816.9,1816.7,6.85612207]
[1680597677283,0.50470459,1816.8,1816.7,6.85612207]
[1680597678290,1.21200003,1816.9,1816.7,6.85612207]
[1680597678512,1.20600003,1816.9,1816.7,6.12854218]
[1680597678820,3e-08,1816.9,1816.7,6.12854218]
[1680597679227,3e-08,1816.9,1816.7,5.68819218]
[1680597679424,3e-08,1816.9,1816.8,2.76602218]
[1680597679725,3e-08,1816.9,1816.7,2.92217]
[1680597679893,1.1071859,1817.0,1816.9,0.00329264]
[1680597680749,1.1071859,1817.0,1816.9,0.24568065]
[1680597680924,1.1071859,1817.0,1816.9,3.01170283]
[1680597681184,1.1071859,1817.0,1816.9,2.79155283]
[1680597681383,1.1071859,1817.0,1816.9,3.01170283]
[1680597681833,1.1071859,1817.0,1816.9,2.79155283]
[1680597681996,1.1071859,1817.0,1816.9,3.13695511]
[1680597682193,1.1071859,1817.0,1816.9,3.35710511]
[1680597682430,1.1071859,1817.0,1816.9,3.13695511]
[1680597683482,1.1071859,1817.0,1816.9,3.35710511]
[1680597683917,1.1071859,1817.0,1816.9,3.13695511]
[1680597686823,0.11000001,1817.0,1816.9,3.58710511]
[1680597687057,0.11000001,1817.0,1816.9,5.17467187]
[1680597687223,0.11000001,1817.0,1816.9,5.17529052]
[1680597687569,0.11000001,1817.0,1816.9,5.18058465]
[1680597692678,0.11000001,1817.0,1816.9,5.45643012]
[1680597692864,0.11000001,1817.0,1816.9,5.18058465]
[1680597693577,0.11000001,1817.0,1816.9,11.06528465]
[1680597694776,0.11000001,1817.0,1816.9,11.35382171]
[1680597694978,0.11000001,1817.0,1816.9,12.49989056]
[1680597695148,0.11000001,1817.0,1816.9,11.06547809]
[1680597696391,0.11000001,1817.0,1816.9,14.35382171]
[1680597696537,0.11000001,1817.0,1816.9,14.37582171]
[1680597698073,0.11000001,1817.0,1816.9,12.94140924]
[1680597698278,0.11000001,1817.0,1816.9,14.37439164]
[1680597698865,0.11000001,1817.0,1816.9,12.94140924]
[1680597700187,0.11000001,1817.0,1816.9,14.37435952]
[1680597702638,0.10615153,1817.0,1816.9,14.36906539]
[1680597710391,0.10615153,1817.0,1816.9,12.93611511]
[1680597712393,0.10615153,1817.0,1816.9,14.36874433]
[1680597715272,0.10615153,1817.0,1816.9,14.6445898]
[1680597716978,0.10615153,1817.0,1816.9,13.21196058]
[1680597717508,0.10615153,1817.0,1816.9,19.01396058]
[1680597717705,0.10615153,1817.0,1816.9,20.73858856]
[1680597722095,0.10615153,1817.0,1816.9,21.42158856]
[1680597725002,0.10277222,1817.0,1816.9,21.42158856]
[1680597732418,0.10277222,1817.0,1816.9,19.69696058]
[1680597732618,0.10277222,1817.0,1816.9,19.69476955]
[1680597735351,0.10277222,1817.0,1816.9,19.01176955]
[1680597738530,0.10277222,1817.0,1816.9,13.20976955]
[1680597738732,0.10277222,1817.0,1816.9,14.63088304]
[1680597739305,0.10277222,1817.0,1816.9,11.28548076]
[1680597739542,1.46877222,1817.0,1816.9,1.43637432]
[1680597739834,1.47477222,1817.0,1816.9,1.43437432]
[1680597740012,1.47477222,1817.0,1816.9,2.58103776]
[1680597740209,1.97368076,1817.0,1816.9,1.14776505]
[1680597740538,1.97368076,1817.0,1816.9,2.58103776]
[1680597740702,1.97368076,1817.0,1816.9,5.34705994]
[1680597740903,1.97368076,1817.0,1816.9,4.2023965]
[1680597740904,0.60768076,1817.0,1816.9,4.2023965]
[1680597741124,0.60768076,1817.0,1816.9,1.14767462]
[1680597743135,0.60768076,1817.0,1816.9,3.9136968]
[1680597743336,0.60768076,1817.0,1816.9,5.39555345]
[1680597743515,0.60768076,1817.0,1816.9,4.19428074]
[1680597743709,0.60768076,1817.0,1816.9,7.19228074]
[1680597743918,0.60768076,1817.0,1816.9,7.21651875]
[1680597744643,0.60168076,1817.0,1816.9,7.21651875]
[1680597745948,0.60168076,1817.0,1816.9,8.93571572]
[1680597751022,0.60168076,1817.0,1816.9,6.65958379]
[1680597751728,0.60168076,1817.0,1816.9,8.37878076]
[1680597754555,0.60168076,1817.0,1816.9,6.65958379]
[1680597754766,0.59892844,1817.0,1816.9,6.65958379]
[1680597754969,0.59892844,1817.0,1816.9,8.37878076]
[1680597755265,0.59892844,1817.0,1816.9,9.30967417]
[1680597756567,0.59892844,1817.0,1816.9,7.5904772]
[1680597757568,0.59892844,1817.0,1816.9,9.30967417]
[1680597758539,0.59892844,1817.0,1816.9,7.5904772]
[1680597759123,0.59892844,1817.0,1816.9,9.30967417]
[1680597759835,0.59892844,1817.0,1816.9,7.5904772]
[1680597761359,0.59892844,1817.0,1816.9,9.30967417]
[1680597762456,0.59892844,1817.0,1816.9,7.5904772]
[1680597764101,0.54892844,1817.0,1816.9,7.5904772]
[1680597765204,0.54892844,1817.0,1816.9,7.58937559]
[1680597765349,0.54892844,1817.0,1816.9,9.30857256]
[1680597765547,0.54892844,1817.0,1816.9,9.33057256]
[1680597765748,0.54892844,1817.0,1816.9,7.61137559]
[1680597766388,0.0500199,1817.0,1816.9,19.31267559]
[1680597766697,0.0500199,1817.0,1816.9,21.96717927]
[1680597767650,0.008,1817.6,1817.1,5.802]
[1680597767867,10.5443,1817.7,1817.5,1.1455507]
[1680597768205,10.5443,1817.7,1817.4,4.19796056]
[1680597768206,0.008,1817.7,1817.6,3.42623218]
[1680597768499,0.006,1817.7,1817.6,3.65623218]
[1680597768665,1.1131859,1817.8,1817.6,3.65623218]
[1680597770402,1.1131859,1817.8,1817.6,3.21609218]
[1680597778787,0.11600001,1817.8,1817.6,3.21609218]
[1680597780220,0.11600001,1817.8,1817.6,2.99602218]
[1680597780529,0.11600001,1817.8,1817.6,2.76602218]
[1680597782279,0.11600001,1817.8,1817.6,2.98608218]
[1680597785703,0.11600001,1817.8,1817.6,3.42622218]
[1680597787926,0.11600001,1817.8,1817.6,2.98608218]
[1680597791927,0.10898613,1817.8,1817.6,2.98937631]
[1680597792113,0.10698613,1817.8,1817.6,2.98608218]
[1680597798437,0.10698613,1817.8,1817.6,2.76602218]
[1680597798736,0.10698613,1817.8,1817.6,4.03957581]
[1680597799944,0.10698613,1817.8,1817.6,4.04486994]
[1680597802208,0.10698613,1817.8,1817.6,9.80226994]
[1680597802439,0.10698613,1817.8,1817.6,9.80426994]
[1680597805515,0.10698613,1817.8,1817.7,3.76867739]
[1680597805722,0.10698613,1817.8,1817.7,17.0122999]
[1680597806021,0.10698613,1817.8,1817.7,17.00900577]
[1680597806740,0.10698613,1817.8,1817.7,17.0142999]
[1680597807151,0.10698613,1817.8,1817.7,10.6812999]
[1680597810955,0.10698613,1817.8,1817.7,11.24223879]
[1680597811456,0.10698613,1817.8,1817.7,9.81030041]
[1680597811750,0.10698613,1817.8,1817.7,11.23998386]
[1680597814560,0.10305018,1817.8,1817.7,11.23468973]
[1680597814922,0.10305018,1817.8,1817.7,9.99275084]
[1680597815122,0.10305018,1817.8,1817.7,10.67075084]
[1680597818764,0.10305018,1817.8,1817.7,11.20879988]
[1680597822750,0.10305018,1817.8,1817.7,17.01079988]
[1680597827083,0.10305018,1817.8,1817.7,15.58111643]
[1680597827299,0.11000001,1818.0,1817.8,1.55811164]
[1680597827446,0.11000001,1818.0,1817.9,9.51855977]
[1680597827667,0.11000001,1818.0,1817.9,14.53852765]
[1680597827967,0.11000001,1818.0,1817.9,17.53852765]
[1680597828163,0.11000001,1818.0,1817.9,26.64552765]
[1680597828365,0.11000001,1818.0,1817.9,30.63174418]
[1680597828567,0.11000001,1818.0,1817.9,32.35007023]
[1680597828838,0.11000001,1818.1,1817.9,32.35007023]
[1680597828839,2e-08,1818.1,1817.9,32.35007023]
[1680597828978,2e-08,1818.1,1818.0,16.50686765]
[1680597829179,2e-08,1818.1,1818.0,22.30662144]
[1680597829776,2e-08,1818.1,1818.0,23.73319192]
[1680597830012,2e-08,1818.1,1818.0,22.30662144]
[1680597830315,2e-08,1818.1,1818.0,22.98162144]
[1680597830873,2e-08,1818.1,1818.0,23.00384599]
[1680597831892,2e-08,1818.1,1818.0,24.42961245]
[1680597832289,2e-08,1818.1,1818.0,24.42960908]
[1680597836879,2e-08,1818.1,1818.0,20.19038453]
[1680597837078,2e-08,1818.1,1818.0,19.90446227]
[1680597837679,2e-08,1818.1,1818.0,21.33022536]
[1680597837885,2e-08,1818.1,1818.0,19.90446227]
[1680597838229,2e-08,1818.1,1818.0,22.60446227]
[1680597838809,2e-08,1818.1,1818.0,23.12038453]
[1680597839228,2e-08,1818.1,1818.0,23.58526179]
[1680597839548,2e-08,1818.1,1818.0,26.89026179]
[1680597840534,2e-08,1818.1,1818.0,25.48672325]
[1680597840882,2e-08,1818.1,1818.0,26.91248634]
[1680597841226,2e-08,1818.1,1818.0,26.91244974]
[1680597841600,2e-08,1818.1,1818.0,24.21244974]
[1680597842332,2e-08,1818.1,1818.0,14.87544974]
[1680597842495,2e-08,1818.1,1818.0,7.89806982]
[1680597842699,2e-08,1818.1,1818.0,9.03790527]
[1680597843035,2e-08,1818.1,1818.0,7.89806982]
[1680597843828,2e-08,1818.1,1818.0,9.0379854]
[1680597844036,2e-08,1818.1,1818.0,9.2679854]
[1680597844533,2e-08,1818.1,1818.0,11.69784094]
[1680597844891,2e-08,1818.1,1818.0,10.55792536]
[1680597847879,2e-08,1818.1,1818.0,13.25792536]
[1680597848832,2e-08,1818.1,1818.0,7.64165074]
[1680597849039,0.68200002,1818.1,1818.0,5.76586765]
[1680597849363,0.68200002,1818.1,1818.0,5.49002218]
[1680597849736,0.68200002,1818.1,1818.0,5.71004218]
[1680597849940,2e-08,1818.1,1818.0,5.71004218]
[1680597850245,2e-08,1818.1,1818.0,7.03016218]
[1680597850448,2e-08,1818.1,1818.0,7.7331784]
[1680597850848,2e-08,1818.1,1818.0,7.9631784]
[1680597851460,2e-08,1818.1,1818.0,9.10502192]
[1680597851783,2e-08,1818.1,1818.0,8.4020057]
[1680597853151,0.027128,1818.3,1818.2,0.21999]
[1680597853352,0.027128,1818.3,1818.2,2.98601218]
[1680597853585,0.027128,1818.3,1818.2,3.00801218]
[1680597855078,0.027128,1818.3,1818.2,4.02338198]
[1680597860776,0.027128,1818.3,1818.2,5.1652255]
[1680597860976,0.027128,1818.3,1818.2,5.1672255]
[1680597861425,0.027128,1818.3,1818.2,4.02538198]
[1680597861595,0.027128,1818.3,1818.2,4.02338198]
[1680597861968,0.027128,1818.3,1818.2,5.1652255]
[1680597862173,0.027128,1818.3,1818.2,5.1672255]
[1680597862401,0.027128,1818.3,1818.2,4.02538198]
[1680597862702,0.027128,1818.3,1818.2,5.1652255]
[1680597862893,0.027128,1818.3,1818.2,5.1672255]
[1680597863060,0.027128,1818.3,1818.2,4.02538198]
[1680597863263,0.027128,1818.3,1818.2,4.02338198]
[1680597863492,0.027128,1818.3,1818.2,5.1652255]
[1680597863793,0.027128,1818.3,1818.2,5.1672255]
[1680597869810,0.027128,1818.3,1818.2,6.59298859]
[1680597870015,0.027128,1818.3,1818.2,8.45114507]
[1680597870310,0.027128,1818.3,1818.2,9.59512221]
[1680597870805,0.027128,1818.3,1818.2,8.45114507]
[1680597874672,0.027128,1818.3,1818.2,7.02538198]
[1680597875312,0.027128,1818.3,1818.2,8.45608901]
[1680597876113,0.02336286,1818.3,1818.2,8.45608901]
[1680597876289,0.02336286,1818.3,1818.2,7.02538198]
[1680597876617,0.02336286,1818.3,1818.2,8.45610675]
[1680597877189,0.02336286,1818.3,1818.2,8.01611675]
[1680597877391,0.02336286,1818.3,1818.2,4.22074695]
[1680597877599,1.23336286,1818.3,1818.2,3.9328394]
[1680597878487,1.23336286,1818.3,1818.2,4.1528294]
[1680597878693,1.23336286,1818.3,1818.2,4.5928194]
[1680597879019,0.02336286,1818.3,1818.2,5.1963514]
[1680597879323,0.02336286,1818.3,1818.2,5.1983514]
[1680597879679,0.02336286,1818.3,1818.2,5.71425895]
[1680597880111,0.02336286,1818.3,1818.2,5.69225895]
[1680597880414,0.02336286,1818.3,1818.2,5.40632359]
[1680597880824,0.02336286,1818.3,1818.2,5.42832359]
[1680597881297,0.02336286,1818.3,1818.2,4.98833359]
[1680597881600,0.02336286,1818.3,1818.2,4.98633359]
[1680597881889,0.02336286,1818.3,1818.2,6.41705836]
[1680597882088,0.02336286,1818.3,1818.2,8.71425895]
[1680597882294,0.02336286,1818.3,1818.2,8.69225895]
[1680597882489,0.02336286,1818.3,1818.2,8.71425895]
[1680597885306,0.02336286,1818.3,1818.2,8.71425895]
[1680597891349,0.02336286,1818.3,1818.2,7.28353418]
[1680597895848,0.02336286,1818.3,1818.2,6.39355418]
[1680597896048,0.02336286,1818.3,1818.2,6.01001218]
[1680597898458,0.01967728,1818.3,1818.2,6.01001218]
[1680597903367,0.01967728,1818.3,1818.2,6.45000218]
[1680597910933,0.0085285,1818.7,1818.2,6.45200218]
[1680597911211,0.0085285,1818.7,1818.6,6.0235377]
[1680597911431,0.0005285,1818.7,1818.6,7.07784847]
[1680597911770,0.0005285,1818.7,1818.6,8.35995295]
[1680597911969,0.0005285,1818.7,1818.6,9.08534428]
[1680597912305,0.0005285,1818.7,1818.6,9.06334428]
[1680597912480,0.0005285,1818.7,1818.6,4.41698005]
[1680597912670,0.0005285,1818.7,1818.6,3.90933526]
[1680597913969,0.0005285,1818.7,1818.6,4.76665527]
[1680597914527,0.0005285,1818.7,1818.6,3.62334219]
[1680597915508,0.0005285,1818.7,1818.5,2.00263309]
[1680597915685,0.0005285,1818.7,1818.5,0.85732001]
[1680597916575,0.0005285,1818.7,1818.4,2.00063309]
[1680597916775,0.0005285,1818.7,1818.4,4.76665527]
[1680597917719,0.0005285,1818.7,1818.4,3.62334219]
[1680597920609,0.0005285,1818.7,1818.4,4.76665527]
[1680597920986,0.0005285,1818.7,1818.4,3.62334219]
[1680597921319,0.0005285,1818.7,1818.4,0.85732001]
[1680597921681,1.205,1818.6,1818.4,0.85732001]
[1680597921922,1.205,1818.6,1818.3,2.00063309]
[1680597922218,1.208,1818.5,1818.3,0.85732001]
[1680597924818,1.208,1818.6,1818.3,0.85732001]
[1680597926720,1.208,1818.6,1818.3,1.07730001]
[1680597928429,1.208,1818.6,1818.3,0.85732001]
[1680597928641,1.205,1818.4,1818.2,0.87932001]
[1680597928769,1.42498,1818.4,1818.2,0.022]
[1680597928979,1.205,1818.4,1818.2,0.022]
[1680597932223,1.205,1818.4,1818.1,0.022]
[1680597932427,0.73602869,1818.3,1818.1,0.022]
[1680597936892,0.73602869,1818.3,1818.1,0.87932001]
[1680597937327,0.73602869,1818.3,1818.2,0.022]
[1680597938036,0.73602869,1818.3,1818.2,2.78802218]
[1680597938541,0.73602869,1818.3,1818.2,3.00801218]
[1680597938713,0.73602869,1818.3,1818.2,2.78802218]
[1680597941150,0.73602869,1818.3,1818.2,0.022]
[1680597942414,1.21,1818.5,1818.2,0.022]
[1680597942633,1.42996,1818.5,1818.2,0.022]
[1680597943524,0.71669268,1818.4,1818.2,0.022]
[1680597945022,0.71669268,1818.4,1818.1,0.022]
[1680597945206,0.71669268,1818.4,1818.1,2.78802218]
[1680597945756,0.71669268,1818.4,1818.2,0.022]
[1680597946666,0.93666268,1818.4,1818.2,0.022]
[1680597946816,0.71669268,1818.4,1818.2,0.022]
[1680597947018,0.71669268,1818.4,1818.1,0.022]
[1680597948053,0.99971439,1818.7,1818.3,1.209]
[1680597948054,0.0025285,1818.7,1818.3,1.209]
[1680597948235,0.0005285,1818.7,1818.6,0.8565566]
[1680597948435,0.0005285,1818.7,1818.6,5.45371764]
[1680597948747,0.0005285,1818.7,1818.6,8.47771764]
[1680597948946,0.0005285,1818.7,1818.6,9.68820384]
[1680597949148,0.0005285,1818.7,1818.6,16.34580384]
[1680597949355,0.0005285,1818.7,1818.6,16.63132271]
[1680597949747,0.0005285,1818.7,1818.6,17.77263813]
[1680597949950,0.0005285,1818.7,1818.6,16.3450438]
[1680597951121,0.0005285,1818.7,1818.6,16.36726102]
[1680597953251,0.0005285,1818.7,1818.6,16.59726102]
[1680597955879,0.11000001,1819.2,1818.6,16.59726102]
[1680597955880,0.11000001,1819.2,1819.0,1.0]
[1680597956089,0.11000001,1819.4,1819.1,6.73410218]
[1680597956380,0.11000001,1819.4,1819.3,1.53903]
[1680597956577,0.11000001,1819.4,1819.3,4.30505218]
[1680597956763,0.11000001,1819.4,1819.3,7.32705218]
[1680597956970,0.11000001,1819.4,1819.3,8.3641574]
[1680597957137,0.11000001,1819.4,1819.3,5.59813522]
[1680597957339,0.11000001,1819.4,1819.3,7.30705218]
[1680597958978,0.11000001,1819.4,1819.3,7.32905218]
[1680597959542,0.11000001,1819.4,1819.3,0.002]
[1680597959755,0.11000001,1819.4,1819.2,6.2624]
[1680597960241,0.11000001,1819.4,1819.2,6.48227]
[1680597960475,0.11000001,1819.4,1819.2,6.2624]
[1680597960645,0.11000001,1819.4,1819.2,6.48227]
[1680597961078,0.11000001,1819.4,1819.2,6.2624]
[1680597961449,0.11000001,1819.4,1819.2,6.48227]
[1680597963683,0.11000001,1819.4,1819.2,6.2624]
[1680597964661,0.11000001,1819.4,1819.2,8.9624]
[1680597965584,9.22561002,1819.7,1819.2,8.9684]
[1680597965783,1.21,1819.5,1819.2,8.9684]
[1680597966377,1.21,1819.5,1819.2,2.708]
[1680597966589,1.208,1819.3,1819.2,2.7]
[1680597967593,1.42786,1819.3,1819.2,2.7]
[1680597972185,3.07758,1819.3,1819.2,2.7]
[1680597975381,5.84360218,1819.3,1819.2,2.7]
[1680597975582,5.84560218,1819.3,1819.2,2.7]
[1680597976518,6.84278807,1819.3,1819.2,2.7]
[1680597977627,7.07278807,1819.3,1819.2,2.7]
[1680597978099,10.07278807,1819.3,1819.2,2.7]
[1680597978922,10.07878807,1819.3,1819.2,2.7]
[1680597983929,7.08276589,1819.3,1819.2,2.7]
[1680597984730,5.87476589,1819.3,1819.2,2.7]
[1680597986070,5.86518186,1819.3,1819.2,2.7]
[1680597994667,10.82984404,1819.3,1819.2,2.7]
[1680597994977,11.05984404,1819.3,1819.2,2.7]
[1680597998154,12.26984404,1819.3,1819.2,2.7]
[1680598002059,12.27584404,1819.3,1819.2,2.7]
[1680598004900,11.06584404,1819.3,1819.2,2.7]
[1680598005665,10.83584404,1819.3,1819.2,2.7]
[1680598006998,11.06584404,1819.3,1819.2,2.7]
[1680598010292,12.59379646,1819.3,1819.2,2.7]
[1680598011768,12.59379646,1819.3,1819.2,2.69776471]
[1680598011979,12.58779646,1819.3,1819.2,2.69776471]
[1680598016801,13.45275105,1819.3,1819.2,2.69776471]
[1680598018106,12.87933423,1819.3,1819.2,2.69776471]
[1680598018314,13.45569024,1819.3,1819.2,2.69776471]
[1680598018521,12.87933423,1819.3,1819.2,2.69776471]
[1680598019650,11.66933423,1819.3,1819.2,2.69776471]
[1680598020220,10.67214834,1819.3,1819.2,2.69776471]
[1680598022058,11.87714834,1819.3,1819.2,2.69776471]
[1680598022215,11.35014834,1819.3,1819.2,2.69776471]
[1680598023626,12.44141846,1819.3,1819.2,2.69776471]
[1680598024253,9.95428889,1819.3,1819.2,2.69776471]
[1680598025342,9.04628889,1819.3,1819.2,2.69776471]
[1680598025920,8.46982387,1819.3,1819.2,2.69776471]
[1680598026419,9.04628889,1819.3,1819.2,2.69776471]
[1680598026834,9.27628889,1819.3,1819.2,2.69776471]
[1680598032191,9.95428889,1819.3,1819.2,2.69776471]
[1680598034485,10.81924348,1819.3,1819.2,2.69776471]
[1680598035489,10.81941262,1819.3,1819.2,2.69776471]
[1680598035830,9.95444942,1819.3,1819.2,2.69776471]
[1680598036007,10.81940401,1819.3,1819.2,2.69776471]
[1680598037305,10.24277846,1819.3,1819.2,2.69776471]
[1680598037901,10.92877846,1819.3,1819.2,2.69776471]
[1680598038108,11.49998461,1819.3,1819.2,2.06750982]
[1680598038828,11.50598461,1819.3,1819.2,2.06750982]
[1680598042536,12.65893648,1819.3,1819.2,2.06750982]
[1680598044703,64.21677574,1819.3,1819.2,2.06750982]
[1680598044909,65.64852751,1819.3,1819.2,2.06750982]
[1680598045744,67.09068825,1819.3,1819.2,2.06750982]
[1680598046099,65.64852751,1819.3,1819.2,2.06750982]
[1680598046445,67.55759406,1819.3,1819.2,2.06750982]
[1680598046951,67.55759406,1819.3,1819.0,0.002]
[1680598047247,1.2584005,1819.1,1818.9,6.8221]
[1680598047399,4.30532218,1819.0,1818.9,6.8221]
[1680598047599,7.53532218,1819.0,1818.9,0.008]
[1680598047800,7.53732218,1819.0,1818.8,0.006]
[1680598048041,3.0,1818.9,1818.6,0.006]
[1680598048341,1.53947,1818.8,1818.6,0.006]
[1680598048698,2.98595218,1818.7,1818.6,0.006]
[1680598061088,2.98341713,1818.7,1818.5,8.451]
[1680598061262,2.98341713,1818.7,1818.5,8.453]
[1680598063179,3.42328713,1818.7,1818.5,8.453]
[1680598065106,3.42728713,1818.7,1818.5,8.44339798]
[1680598065400,3.42928713,1818.7,1818.5,8.44339798]
[1680598068533,0.6658,1818.7,1818.5,8.44339798]
[1680598068697,0.006,1818.8,1818.5,9.35603778]
[1680598069014,0.22591,1818.9,1818.6,0.676]
[1680598069313,2.98593218,1818.9,1818.6,0.676]
[1680598069610,2.99193218,1818.9,1818.6,0.676]
[1680598071309,3.43175218,1818.9,1818.6,0.676]
[1680598072273,3.56655338,1818.9,1818.6,0.676]
[1680598072667,0.8005312,1818.9,1818.6,0.676]
[1680598072867,0.7945312,1818.9,1818.6,0.676]
[1680598073319,1.34698119,1818.9,1818.6,0.676]
[1680598073876,1.35298119,1818.9,1818.6,0.676]
[1680598079813,1.35298119,1818.9,1818.5,8.44339798]
[1680598081002,4.11900337,1818.9,1818.5,8.44339798]
[1680598085698,4.11900337,1818.9,1818.5,8.44539798]
[1680598085699,2.76222085,1818.8,1818.5,8.44539798]
[1680598085931,2.76222085,1818.8,1818.5,8.44939798]
[1680598085932,0.21993,1818.7,1818.5,8.44939798]
[1680598099988,2.76602218,1818.6,1818.5,2.102]
[1680598100165,2.76602218,1818.6,1818.5,2.1]
[1680598100166,7.35602218,1818.6,1818.5,2.1]
[1680598100363,0.002,1818.6,1818.5,2.1]
[1680598100563,3.5784005,1818.8,1818.5,2.1]
[1680598100738,1.55785194,1818.9,1818.5,2.1]
[1680598100739,1.13685049,1818.9,1818.5,2.1]
[1680598100938,0.55244999,1818.9,1818.6,0.21]
[1680598101159,12.0625105,1819.0,1818.6,0.21]
[1680598101379,4.10227344,1819.0,1818.6,0.21]
[1680598101575,4.10027344,1819.0,1818.6,0.21]
[1680598101879,4.10027344,1819.0,1818.5,2.1]
[1680598102066,4.10027344,1819.0,1818.5,2.782]
[1680598102265,4.10027344,1819.0,1818.5,2.788]
[1680598103133,4.54007344,1819.0,1818.5,2.788]
[1680598109897,4.54007344,1819.0,1818.5,2.106]
[1680598110182,4.54007344,1819.0,1818.5,2.1]
[1680598112682,3.72065396,1818.9,1818.5,2.1]
[1680598112881,0.65977,1818.8,1818.5,2.106]
[1680598114163,0.21992,1818.8,1818.5,2.106]
[1680598115205,2.76602218,1818.7,1818.5,2.106]
[1680598115600,2.98596218,1818.7,1818.5,2.106]
[1680598116707,0.21994,1818.7,1818.5,2.106]
[1680598117010,0.21992,1818.8,1818.5,3.02270547]
[1680598117171,0.21992,1818.8,1818.5,3.87676013]
[1680598117368,9.73742,1818.9,1818.5,3.87676013]
[1680598118264,9.51453655,1818.9,1818.6,0.38767601]
[1680598118463,0.002,1818.9,1818.6,0.39367601]
[1680598118775,0.75784076,1819.0,1818.6,1.24173067]
[1680598119112,0.75784076,1819.0,1818.6,0.38767601]
[1680598122310,14.4723112,1819.1,1818.8,0.682]
[1680598122311,0.002,1819.1,1818.8,0.682]
[1680598122610,10.38477,1819.3,1818.9,0.0682]
[1680598122813,10.39077,1819.3,1818.9,0.0682]
[1680598123379,10.1709,1819.3,1818.9,0.0682]
[1680598123706,10.38476,1819.3,1818.9,0.0682]
[1680598123865,10.1649,1819.3,1818.8,0.90792]
[1680598124059,3.67602218,1819.2,1818.8,0.006]
[1680598124268,1.53923,1819.1,1818.8,0.006]
[1680598125101,1.53923,1819.1,1818.7,6.7022]
[1680598129388,1.53923,1819.1,1818.7,6.7022]
[1680598131527,2.98789218,1819.2,1818.7,7.59457172]
[1680598131679,13.7453005,1819.3,1818.7,7.59457172]
[1680598131680,13.1709,1819.3,1818.7,7.59457172]
[1680598131879,3.21987,1819.2,1818.7,7.37464172]
[1680598132192,3.0,1819.2,1818.8,0.73746417]
[1680598132432,3.0,1819.2,1818.8,0.95738417]
[1680598132619,2.99388218,1819.3,1818.8,0.73746417]
[1680598132922,2.98588218,1819.3,1818.8,0.73746417]
[1680598133222,2.98588218,1819.3,1818.9,0.07374642]
[1680598135317,0.21986,1819.3,1818.9,0.07374642]
[1680598135505,0.65958,1819.3,1818.9,0.07374642]
[1680598135825,3.65958,1819.3,1818.9,0.07374642]
[1680598137721,3.65958,1819.3,1818.7,8.07885772]
[1680598137925,2.99602218,1819.2,1818.7,6.7022]
[1680598138082,0.65968,1819.1,1818.7,6.7022]
[1680598139714,0.65750788,1819.1,1818.7,6.7022]
[1680598141531,4.10153006,1819.1,1818.7,6.7022]
[1680598141697,0.65750788,1819.1,1818.7,6.7022]
[1680598141897,0.21771788,1819.1,1818.7,6.7022]
[1680598143232,0.21771788,1819.1,1818.7,7.43624172]
[1680598145231,0.65748788,1819.1,1818.7,7.43624172]
[1680598145427,0.65748788,1819.1,1818.7,7.44224172]
[1680598145832,0.65748788,1819.1,1818.7,7.43624172]
[1680598146332,0.65748788,1819.1,1818.7,7.44224172]
[1680598146529,0.65748788,1819.1,1818.8,0.74422417]
[1680598151046,0.21771788,1819.1,1818.8,0.74422417]
[1680598151205,0.65748788,1819.1,1818.8,0.74422417]
[1680598153010,0.65748788,1819.1,1818.7,7.3792]
[1680598156640,0.65748788,1819.1,1818.7,6.7022]
[1680598157130,0.21771788,1819.1,1818.7,7.3842]
[1680598157313,12.29632752,1819.4,1819.0,0.682]
[1680598157314,0.008,1819.4,1819.0,0.682]
[1680598157643,0.004,1819.5,1819.1,0.28808]
[1680598157958,0.004,1819.6,1819.1,6.4571]
[1680598157959,0.21983,1819.6,1819.1,6.4571]
[1680598158262,0.21983,1819.6,1819.2,0.64571]
[1680598158618,0.97073482,1819.8,1819.2,1.54258]
[1680598158835,0.25080721,1819.8,1819.2,4.74835218]
[1680598159044,0.15080721,1819.8,1819.4,0.677]
[1680598159244,0.37060721,1819.8,1819.4,7.1641]
[1680598159562,0.37060721,1819.8,1819.5,0.71641]
[1680598159745,0.37060721,1819.8,1819.5,0.72241]
[1680598162522,0.37060721,1819.8,1819.5,0.74461622]
[1680598165568,0.81020721,1819.8,1819.5,0.74461622]
[1680598169238,0.81020721,1819.8,1819.5,2.84461622]
[1680598170324,0.37060721,1819.8,1819.5,2.84461622]
[1680598170523,0.37060721,1819.8,1819.6,0.28446162]
[1680598170751,0.15080721,1819.8,1819.6,0.28446162]
[1680598170932,0.15080721,1819.8,1819.6,0.50428162]
[1680598171146,0.15080721,1819.8,1819.6,0.28446162]